bitfinex/quotes_SOLUSD_20230111
["timestamp","ask_amount","ask_price","bid_price","bid_amount"]
[1673400731612,24.23664,16.028,16.012,138.281]
[1673400731837,46.82,16.027,16.012,138.281]
[1673400732042,17.0,16.026,16.012,138.281]
[1673400732254,17.0,16.028,16.012,138.281]
[1673400734674,17.0,16.029,16.012,138.281]
[1673400735846,26.52,16.03,16.013,17.0]
[1673400737729,26.52,16.03,16.014,20.0]
[1673400737924,46.79,16.038,16.015,17.0]
[1673400738162,46.7800967,16.039,16.016,20.0]
[1673400738359,88.29528183,16.039,16.017,17.0]
[1673400738560,88.29528183,16.039,16.018,20.0]
[1673400738765,275.29528183,16.039,16.02,20.0]
[1673400738985,20.0,16.037,16.02,20.0]
[1673400739189,46.79,16.036,16.021,20.0]
[1673400740240,17.0,16.035,16.021,20.0]
[1673400740574,46.79,16.036,16.021,20.0]
[1673400740883,48.75182513,16.037,16.021,20.0]
[1673400740884,48.75182513,16.037,16.022,20.0]
[1673400741809,17.0,16.036,16.022,20.0]
[1673400743610,48.75182513,16.037,16.022,20.0]
[1673400743827,9.67e-05,16.039,16.022,20.0]
[1673400744555,187.0000967,16.039,16.022,20.0]
[1673400744760,46.79,16.038,16.022,20.0]
[1673400744960,17.0,16.037,16.022,20.0]
[1673400745172,17.0,16.038,16.022,20.0]
[1673400746647,24.23664,16.038,16.022,20.0]
[1673400746857,233.79,16.037,16.022,20.0]
[1673400747062,17.0,16.036,16.021,20.0]
[1673400747484,46.8,16.035,16.021,20.0]
[1673400747700,17.0,16.034,16.021,20.0]
[1673400748436,17.0,16.035,16.021,20.0]
[1673400749067,204.0,16.036,16.021,20.0]
[1673400749396,46.8,16.035,16.021,20.0]
[1673400749592,17.0,16.034,16.021,20.0]
[1673400750317,20.0,16.034,16.021,20.0]
[1673400750532,26.56,16.03,16.019,109.1568]
[1673400750971,17.0,16.029,16.019,109.1568]
[1673400753054,7.23664,16.034,16.019,109.1568]
[1673400753271,46.79,16.037,16.02,130.878]
[1673400753477,88.30518513,16.038,16.02,130.878]
[1673400753691,41.51518513,16.038,16.02,130.878]
[1673400754109,9.67e-05,16.039,16.02,130.878]
[1673400754649,9.67e-05,16.039,16.021,17.0]
[1673400754862,17.0000967,16.039,16.021,17.0]
[1673400755175,17.0000967,16.039,16.022,20.0]
[1673400757281,63.7800967,16.039,16.022,20.0]
[1673400758335,46.7800967,16.039,16.022,20.0]
[1673400758648,9.67e-05,16.039,16.022,20.0]
[1673400759912,63.7800967,16.039,16.022,20.0]
[1673400760127,17.0000967,16.039,16.022,20.0]
[1673400761171,12.0000967,16.039,16.022,20.0]
[1673400762651,26.55,16.04,16.022,20.0]
[1673400763910,17.0,16.039,16.022,20.0]
[1673400769063,63.78,16.039,16.022,20.0]
[1673400771464,63.78,16.039,16.02,130.878]
[1673400771672,7.23664,16.038,16.02,130.878]
[1673400771898,83.79,16.037,16.02,130.878]
[1673400772102,83.79,16.037,16.021,20.0]
[1673400772629,63.79,16.037,16.021,20.0]
[1673400774515,20.0,16.036,16.02,130.878]
[1673400774732,63.8,16.035,16.02,130.878]
[1673400774945,20.0,16.029,16.013,20.0]
[1673400775127,46.81,16.029,16.013,135.0919]
[1673400775341,17.0,16.028,16.013,135.0919]
[1673400775547,46.82,16.027,16.013,135.0919]
[1673400775761,17.0,16.026,16.013,135.0919]
[1673400775977,17.0,16.028,16.013,135.0919]
[1673400777671,7.23664,16.034,16.014,37.0]
[1673400777867,132.59,16.04,16.014,37.0]
[1673400778077,26.39,16.04,16.015,64.99674059]
[1673400778299,26.39,16.04,16.017,20.0]
[1673400778513,26.39,16.04,16.018,20.0]
[1673400778715,26.39,16.04,16.02,26.51]
[1673400778923,46.77,16.042,16.022,20.0]
[1673400779130,46.77,16.045,16.023,17.0]
[1673400779343,20.0,16.042,16.024,20.0]
[1673400779550,20.0,16.042,16.025,17.0]
[1673400780398,17.0,16.041,16.025,17.0]
[1673400781035,17.0,16.041,16.024,20.0]
[1673400781434,46.77,16.044,16.025,37.0]
[1673400781655,46.75,16.049,16.026,21.47131966]
[1673400781874,46.75,16.049,16.027,17.0]
[1673400782074,46.75,16.049,16.029,1.52087403]
[1673400782287,46.75,16.049,16.031,1.6415736]
[1673400782501,46.75,16.049,16.031,21.6415736]
[1673400784081,17.0,16.048,16.031,20.0]
[1673400784801,46.76,16.047,16.031,20.0]
[1673400785139,17.0,16.046,16.031,20.0]
[1673400786064,46.75,16.049,16.032,1.49642708]
[1673400786485,46.75,16.049,16.032,14.0145067]
[1673400786816,46.75,16.049,16.032,1.49642708]
[1673400787342,17.0,16.048,16.032,1.49642708]
[1673400787862,46.76,16.047,16.032,1.49642708]
[1673400788075,17.0,16.046,16.031,20.0]
[1673400790268,17.0,16.046,16.032,20.0]
[1673400790583,17.0,16.046,16.033,20.0]
[1673400797323,63.76,16.047,16.033,20.0]
[1673400797521,17.0,16.047,16.033,20.0]
[1673400797949,63.76,16.047,16.033,20.0]
[1673400798143,17.0,16.047,16.033,20.0]
[1673400798355,17.0,16.048,16.033,20.0]
[1673400798574,46.76,16.047,16.033,20.0]
[1673400798785,17.0,16.046,16.033,20.0]
[1673400799524,63.76,16.047,16.033,20.0]
[1673400800266,17.0,16.047,16.033,20.0]
[1673400800466,17.0,16.048,16.033,20.0]
[1673400802273,46.76,16.047,16.033,20.0]
[1673400802580,17.0,16.046,16.033,20.0]
[1673400802782,17.0,16.046,16.032,20.0]
[1673400803208,17.0,16.047,16.032,20.0]
[1673400803614,46.76,16.046,16.032,20.0]
[1673400803825,17.0,16.045,16.032,20.0]
[1673400804255,63.76,16.046,16.032,20.0]
[1673400804778,20.0,16.045,16.032,20.0]
[1673400804994,26.55,16.04,16.02,137.2964]
[1673400805186,46.78,16.039,16.024,20.0]
[1673400805395,17.0,16.038,16.024,20.0]
[1673400806895,17.0,16.039,16.024,20.0]
[1673400807080,63.78,16.039,16.024,20.0]
[1673400809827,63.78,16.039,16.023,112.768]
[1673400810028,20.0,16.038,16.023,112.768]
[1673400810242,63.79,16.037,16.023,112.768]
[1673400811806,63.79,16.037,16.024,20.0]
[1673400812240,17.0,16.037,16.024,20.0]
[1673400812557,17.0,16.038,16.024,20.0]
[1673400814234,46.79,16.037,16.024,20.0]
[1673400814444,38.55825296,16.043,16.024,20.0]
[1673400814445,46.78,16.039,16.025,17.0]
[1673400814766,187.0,16.049,16.026,20.0]
[1673400814767,46.77,16.043,16.026,20.0]
[1673400814979,20.0,16.042,16.027,17.0]
[1673400815168,46.76,16.046,16.028,20.0]
[1673400815382,46.75,16.049,16.029,20.0]
[1673400815593,46.75,16.049,16.03,20.0]
[1673400816030,20.0,16.048,16.03,20.0]
[1673400816218,46.76,16.047,16.032,20.0]
[1673400816429,17.0,16.046,16.032,20.0]
[1673400816644,46.75,16.049,16.032,20.0]
[1673400818644,17.0,16.048,16.032,20.0]
[1673400820955,46.76,16.047,16.032,20.0]
[1673400821286,17.0,16.046,16.032,20.0]
[1673400824845,46.75,16.049,16.032,20.0]
[1673400826333,17.0,16.048,16.032,20.0]
[1673400828429,46.74,16.053,16.032,20.0]
[1673400828642,46.73,16.056,16.033,38.8204524]
[1673400828957,38.55825296,16.058,16.034,20.0]
[1673400829171,26.55,16.05,16.035,1.8204524]
[1673400829365,46.75,16.049,16.034,55.69645414]
[1673400829582,46.75,16.049,16.032,20.0]
[1673400830304,17.0,16.048,16.032,20.0]
[1673400830518,26.55,16.05,16.034,20.0]
[1673400831677,46.75,16.049,16.034,20.0]
[1673400831876,17.0,16.048,16.034,20.0]
[1673400835057,46.74,16.053,16.036,20.0]
[1673400835265,17.0,16.052,16.038,20.0]
[1673400835484,17.0,16.052,16.039,130.3754]
[1673400835678,17.0,16.052,16.04,20.0]
[1673400835879,17.0,16.052,16.041,20.0]
[1673400836959,9.5,16.052,16.041,20.0]
[1673400837887,9.5,16.052,16.042,20.0]
[1673400846086,46.73,16.057,16.042,20.0]
[1673400846497,17.0,16.056,16.042,20.0]
[1673400847145,63.73,16.057,16.042,20.0]
[1673400847884,46.73,16.057,16.042,20.0]
[1673400848200,46.72,16.059,16.044,1.67591941]
[1673400848387,187.0,16.066,16.044,1.67591941]
[1673400848388,46.72,16.062,16.044,21.67591941]
[1673400848598,46.72,16.062,16.046,1.82075066]
[1673400848809,46.7,16.066,16.046,21.82075066]
[1673400849033,46.7,16.066,16.048,2.18958661]
[1673400849244,46.7,16.066,16.05,2.18958661]
[1673400849456,46.7,16.066,16.05,22.18958661]
[1673400849666,46.7,16.066,16.052,20.0]
[1673400850493,20.0,16.065,16.052,20.0]
[1673400850699,46.71,16.064,16.052,20.0]
[1673400851446,17.0,16.062,16.052,20.0]
[1673400855454,46.7,16.066,16.052,20.0]
[1673400858074,17.0,16.062,16.052,20.0]
[1673400858918,220.84399089,16.067,16.052,20.0]
[1673400859129,174.14399089,16.067,16.052,20.0]
[1673400859860,46.7,16.069,16.052,20.0]
[1673400860299,26.75,16.07,16.053,17.0]
[1673400860498,26.75,16.07,16.054,20.0]
[1673400861545,17.0,16.062,16.052,20.0]
[1673400861758,17.0,16.062,16.051,41.44024959]
[1673400861964,17.0,16.062,16.051,40.0]
[1673400862709,17.0,16.062,16.052,20.0]
[1673400865428,26.9197967,16.063,16.052,20.0]
[1673400867118,17.0,16.062,16.052,20.0]
[1673400869015,26.9197967,16.063,16.052,20.0]
[1673400871123,26.9197967,16.063,16.053,17.0]
[1673400871310,26.9197967,16.063,16.054,20.0]
[1673400872374,26.9197967,16.063,16.055,37.0]
[1673400872705,26.9197967,16.063,16.056,20.0]
[1673400872892,26.9197967,16.063,16.058,20.0]
[1673400873103,26.9197967,16.063,16.059,20.0]
[1673400873954,46.68,16.076,16.06,20.0]
[1673400874157,20.0,16.078,16.061,22.34653989]
[1673400874480,53.90664,16.077,16.061,22.34653989]
[1673400874679,27.23664,16.076,16.061,2.34653989]
[1673400874890,46.68,16.075,16.06,2.34653989]
[1673400875538,20.0,16.074,16.06,2.34653989]
[1673400876693,46.68,16.075,16.06,1.4828618]
[1673400876908,46.68,16.075,16.06,18.4828618]
[1673400877105,46.67,16.078,16.062,21.65308839]
[1673400877314,46.67,16.079,16.062,21.65308839]
[1673400877528,46.67,16.079,16.062,20.0]
[1673400879647,26.75,16.08,16.064,20.0]
[1673400879835,63.67,16.079,16.066,20.0]
[1673400882276,63.67,16.079,16.065,115.4545]
[1673400882465,20.0,16.078,16.065,115.4545]
[1673400882682,63.67,16.077,16.065,115.4545]
[1673400882897,17.0,16.076,16.065,115.4545]
[1673400883088,17.0,16.076,16.063,112.6998]
[1673400883298,46.68,16.075,16.063,112.6998]
[1673400883521,17.0,16.074,16.063,112.6998]
[1673400884056,46.67,16.079,16.064,20.0]
[1673400884258,17.0,16.078,16.064,20.0]
[1673400884453,46.67,16.077,16.064,20.0]
[1673400884668,17.0,16.076,16.065,115.0308]
[1673400884878,46.68,16.075,16.065,115.0308]
[1673400885099,17.0,16.074,16.066,20.0]
[1673400885425,17.0,16.076,16.066,20.0]
[1673400887296,46.67,16.079,16.066,20.0]
[1673400888359,26.75,16.08,16.065,115.0308]
[1673400888673,66.67,16.079,16.065,115.0308]
[1673400888891,46.67,16.079,16.065,115.0308]
[1673400889290,46.67,16.079,16.066,20.0]
[1673400890449,20.0,16.078,16.065,115.0308]
[1673400890658,46.67,16.077,16.065,115.0308]
[1673400890867,17.0,16.076,16.065,115.0308]
[1673400892763,17.0,16.077,16.065,115.0308]
[1673400893299,20.0,16.079,16.065,115.0308]
[1673400893496,46.67,16.079,16.065,115.0308]
[1673400893707,46.75,16.08,16.065,115.0308]
[1673400893922,26.75,16.08,16.065,115.0308]
[1673400894439,26.75,16.08,16.066,20.0]
[1673400894865,17.0,16.079,16.066,20.0]
[1673400895087,63.67,16.079,16.066,20.0]
[1673400896231,17.0,16.079,16.065,115.0308]
[1673400896440,20.0,16.077,16.065,115.0308]
[1673400896649,186.5,16.075,16.056,116.9806]
[1673400896875,318.62,16.07,16.056,116.9806]
[1673400897069,20.0,16.068,16.056,116.9806]
[1673400897275,63.7,16.067,16.056,116.9806]
[1673400897812,112.7305274,16.067,16.056,116.9806]
[1673400899073,66.0305274,16.067,16.056,116.9806]
[1673400899414,46.7,16.066,16.052,108.5724]
[1673400899592,17.0,16.065,16.048,20.0]
[1673400899802,66.0305274,16.065,16.048,129.3933]
[1673400900007,49.0305274,16.064,16.049,20.0]
[1673400900247,17.0,16.063,16.049,20.0]
[1673400900643,26.5,16.06,16.048,129.3933]
[1673400900880,17.0,16.059,16.048,129.3933]
[1673400901070,17.0,16.059,16.048,109.3933]
[1673400901391,66.0305274,16.059,16.048,109.3933]
[1673400901588,84.58878036,16.059,16.042,20.0]
[1673400901794,240.96664,16.058,16.042,20.0]
[1673400902117,104.58878036,16.057,16.042,20.0]
[1673400902330,46.73,16.056,16.042,20.0]
[1673400902547,17.0,16.055,16.041,131.2391]
[1673400902767,17.0,16.055,16.038,115.9055]
[1673400903074,26.37,16.05,16.038,115.9055]
[1673400903286,17.0,16.049,16.032,111.2391]
[1673400903510,46.76,16.048,16.033,20.0]
[1673400903728,17.0,16.047,16.033,20.0]
[1673400904125,46.76,16.046,16.033,20.0]
[1673400904337,17.0,16.045,16.021,20.0]
[1673400904556,26.37,16.04,16.021,136.9096]
[1673400904983,17.0,16.045,16.022,12.51807962]
[1673400905386,17.0,16.045,16.023,20.0]
[1673400905603,17.0,16.045,16.024,20.0]
[1673400905808,17.0,16.046,16.024,32.51807962]
[1673400906019,17.0,16.046,16.025,12.51807962]
[1673400906350,17.0,16.046,16.027,20.0]
[1673400906551,63.76,16.047,16.027,20.0]
[1673400906761,27.23664,16.046,16.028,20.0]
[1673400906977,17.0,16.045,16.028,20.0]
[1673400907194,17.0,16.045,16.03,20.0]
[1673400907411,17.0,16.045,16.031,20.0]
[1673400907805,46.77,16.044,16.031,20.0]
[1673400908115,17.0,16.043,16.031,20.0]
[1673400908538,17.0,16.044,16.027,20.0]
[1673400908761,26.37,16.04,16.005,20.0]
[1673400908975,17.0,16.039,16.025,112.2623]
[1673400910339,17.0,16.039,16.026,20.0]
[1673400914536,17.0,16.039,16.025,112.2623]
[1673400914955,17.0,16.039,16.026,20.0]
[1673400915171,17.0,16.039,16.026,19.0]
[1673400917370,26.37,16.04,16.026,19.0]
[1673400918745,17.0,16.039,16.026,19.0]
[1673400918956,26.37,16.04,16.026,19.0]
[1673400919998,46.75,16.049,16.027,32.51807962]
[1673400920207,66.75,16.049,16.028,20.0]
[1673400920420,46.76,16.047,16.03,20.0]
[1673400920635,46.76,16.047,16.031,20.0]
[1673400920857,46.76,16.048,16.031,20.0]
[1673400921171,46.75,16.049,16.033,20.0]
[1673400921790,20.0,16.048,16.033,20.0]
[1673400922000,17.0,16.047,16.032,108.8203]
[1673400922231,63.76,16.047,16.032,108.8203]
[1673400922432,107.85974968,16.047,16.031,20.0]
[1673400922626,27.23664,16.046,16.03,20.0]
[1673400922837,71.00664,16.045,16.03,20.0]
[1673400923056,20.0,16.044,16.03,20.0]
[1673400923272,17.0,16.043,16.03,20.0]
[1673400924218,17.0,16.044,16.031,20.0]
[1673400926324,26.37,16.04,16.027,115.7887]
[1673400926533,20.0,16.038,16.02,111.048]
[1673400926752,20.0,16.038,16.021,108.6542]
[1673400926968,63.79,16.037,16.021,108.6542]
[1673400927394,20.0,16.036,16.021,108.6542]
[1673400927609,63.79,16.035,16.021,108.6542]
[1673400928113,63.79,16.035,16.022,20.0]
[1673400928325,17.0,16.035,16.022,20.0]
[1673400928856,63.79,16.035,16.022,20.0]
[1673400929069,17.0,16.035,16.022,20.0]
[1673400929282,17.0,16.035,16.022,40.0]
[1673400929490,17.0,16.036,16.022,40.0]
[1673400929704,17.0,16.036,16.022,20.0]
[1673400929900,66.79,16.035,16.022,20.0]
[1673400930109,37.0,16.034,16.011,135.6272]
[1673400930328,26.49,16.03,16.011,135.6272]
[1673400930635,17.0,16.029,16.014,20.0]
[1673400934010,26.49,16.03,16.014,20.0]
[1673400935272,17.0,16.029,16.014,20.0]
[1673400938105,26.49,16.03,16.014,20.0]
[1673400939372,17.0,16.029,16.014,20.0]
[1673400939775,26.49,16.03,16.014,20.0]
[1673400940841,17.0,16.029,16.014,20.0]
[1673400941982,26.49,16.03,16.016,20.0]
[1673400943368,17.0,16.029,16.016,20.0]
[1673400943786,26.49,16.03,16.017,17.0]
[1673400945655,26.49,16.03,16.016,20.0]
[1673400945881,26.49,16.03,16.017,17.0]
[1673400946095,17.0,16.029,16.016,20.0]
[1673400946495,63.81,16.029,16.016,20.0]
[1673400947135,63.81,16.029,16.014,20.0]
[1673400948724,17.0,16.029,16.016,20.0]
[1673400948933,26.49,16.03,16.016,20.0]
[1673400950402,44.09974968,16.036,16.016,20.0]
[1673400950612,132.71,16.05,16.02,132.29]
[1673400950822,20.0,16.048,16.022,20.0]
[1673400951040,27.23664,16.048,16.023,37.0]
[1673400951227,46.76,16.047,16.023,49.51807962]
[1673400951438,20.0,16.046,16.024,20.0]
[1673400951648,46.77,16.045,16.026,20.0]
[1673400951875,46.77,16.045,16.027,37.0]
[1673400952277,46.77,16.045,16.028,20.0]
[1673400952497,46.77,16.045,16.029,20.0]
[1673400952912,46.76,16.047,16.03,17.0]
[1673400953121,46.76,16.047,16.031,20.0]
[1673400954063,17.0,16.046,16.031,20.0]
[1673400955543,17.0,16.046,16.032,110.195]
[1673400956075,17.0,16.046,16.033,20.0]
[1673400957971,7.23664,16.048,16.033,20.0]
[1673400958286,26.75,16.05,16.034,12.51807962]
[1673400958500,46.75,16.049,16.034,12.51807962]
[1673400958685,46.75,16.049,16.033,20.0]
[1673400959319,17.0,16.048,16.033,20.0]
[1673400959972,20.0,16.047,16.032,110.195]
[1673400960163,63.76,16.046,16.032,110.195]
[1673400960378,20.0,16.045,16.032,110.195]
[1673400960591,63.77,16.044,16.032,110.195]
[1673400963015,17.0,16.044,16.032,110.195]
[1673400963963,46.75,16.049,16.033,11.82834796]
[1673400964178,26.75,16.05,16.035,20.0]
[1673400964379,46.75,16.049,16.035,20.0]
[1673400964803,46.75,16.049,16.035,0.71996524]
[1673400965329,17.0,16.048,16.035,0.71996524]
[1673400965645,26.75,16.05,16.036,11.82834796]
[1673400965853,46.74,16.053,16.037,17.0]
[1673400966046,47.6986,16.059,16.037,17.0]
[1673400966047,46.73,16.058,16.038,20.0]
[1673400966254,46.72,16.059,16.039,131.4806]
[1673400966474,46.72,16.059,16.039,143.30894796]
[1673400966688,46.72,16.059,16.04,51.82834796]
[1673400966903,20.0,16.058,16.041,17.0]
[1673400967215,20.0,16.058,16.042,20.0]
[1673400967413,46.72,16.059,16.043,17.0]
[1673400967626,26.75,16.06,16.044,20.0]
[1673400967834,26.75,16.06,16.045,17.0]
[1673400968799,26.75,16.06,16.043,11.82834796]
[1673400968800,20.0,16.058,16.043,11.82834796]
[1673400969000,17.0,16.057,16.043,11.82834796]
[1673400969537,20.0,16.063,16.045,20.0]
[1673400969725,20.0,16.062,16.046,17.0]
[1673400969934,20.0,16.062,16.046,28.82834796]
[1673400970267,46.7,16.068,16.047,31.82834796]
[1673400970475,46.7,16.069,16.048,17.0]
[1673400970790,20.0,16.068,16.049,40.0]
[1673400970989,46.7,16.067,16.05,17.0]
[1673400971204,46.7,16.067,16.048,48.82834796]
[1673400971205,26.37,16.06,16.048,11.82834796]
[1673400971418,63.72,16.059,16.047,229.4015]
[1673400971828,17.0,16.059,16.047,229.4015]
[1673400972039,63.72,16.059,16.047,229.4015]
[1673400972566,17.0,16.059,16.047,229.4015]
[1673400974763,17.0,16.059,16.048,20.0]
[1673400974979,26.37,16.06,16.048,20.0]
[1673400975724,46.71,16.064,16.048,20.0]
[1673400976042,46.71,16.064,16.048,31.82834796]
[1673400976247,46.7,16.069,16.049,37.0]
[1673400976573,46.7,16.069,16.05,20.0]
[1673400976786,73.44,16.07,16.051,37.0]
[1673400976974,73.44,16.07,16.052,20.0]
[1673400977185,73.44,16.07,16.053,17.0]
[1673400977394,20.0,16.069,16.053,17.0]
[1673400978242,73.44,16.07,16.053,17.0]
[1673400978455,26.75,16.07,16.053,17.0]
[1673400978877,46.7,16.069,16.053,17.0]
[1673400979085,26.75,16.07,16.053,17.0]
[1673400979824,20.0,16.069,16.053,17.0]
[1673400980038,66.7,16.069,16.053,17.0]
[1673400980226,17.0,16.068,16.053,17.0]
[1673400980438,17.0,16.068,16.054,109.0949]
[1673400981925,46.7,16.067,16.054,109.0949]
[1673400982129,17.0,16.066,16.054,109.0949]
[1673400982366,46.71,16.065,16.054,109.0949]
[1673400982567,17.0,16.064,16.054,109.0949]
[1673400983299,17.0,16.064,16.051,20.0]
[1673400983611,46.71,16.063,16.051,115.7902]
[1673400983820,17.0,16.062,16.052,20.0]
[1673400984011,46.71,16.063,16.052,40.0]
[1673400984221,17.0,16.064,16.052,40.0]
[1673400985183,17.0,16.065,16.052,40.0]
[1673400987628,46.7,16.067,16.053,20.0]
[1673400987838,26.66,16.07,16.053,20.0]
[1673400988041,46.7,16.069,16.053,20.0]
[1673400988890,17.0,16.068,16.053,20.0]
[1673400990996,26.66,16.07,16.054,17.0]
[1673400991211,26.66,16.07,16.055,20.0]
[1673400991403,26.66,16.07,16.056,17.0]
[1673400991826,20.0,16.069,16.053,20.0]
[1673400992031,66.7,16.069,16.053,20.0]
[1673400992354,46.7,16.069,16.054,17.0]
[1673400992562,26.66,16.07,16.055,20.0]
[1673400992771,26.66,16.07,16.056,17.0]
[1673400992980,26.66,16.07,16.057,20.0]
[1673400994992,46.68,16.075,16.059,20.0]
[1673400995204,46.67,16.079,16.06,20.0]
[1673400995409,46.67,16.079,16.062,20.0]
[1673400996133,46.67,16.079,16.06,130.4803]
[1673400996363,37.0,16.078,16.057,20.0]
[1673400996575,20.0,16.076,16.057,20.0]
[1673400996780,83.68,16.075,16.057,20.0]
[1673400996997,20.0,16.074,16.057,20.0]
[1673400997207,83.68,16.073,16.057,20.0]
[1673400997512,66.68,16.073,16.057,20.0]
[1673400997727,20.0,16.073,16.059,20.0]
[1673400997945,46.69,16.072,16.059,20.0]
[1673400998146,20.0,16.071,16.059,20.0]
[1673400998550,46.68,16.075,16.06,37.0]
[1673400998778,46.67,16.079,16.061,20.0]
[1673400998969,46.67,16.079,16.063,20.0]
[1673400999392,46.67,16.079,16.064,17.0]
[1673400999812,46.67,16.079,16.066,20.0]
[1673400999813,17.0,16.078,16.066,20.0]
[1673401001395,46.67,16.079,16.066,20.0]
[1673401002967,17.0,16.078,16.066,20.0]
[1673401003174,17.0,16.078,16.065,113.2908]
[1673401003601,46.67,16.077,16.065,113.2908]
[1673401003824,17.0,16.076,16.065,113.2908]
[1673401004439,63.67,16.077,16.065,113.2908]
[1673401005194,63.67,16.077,16.066,20.0]
[1673401006767,63.67,16.077,16.065,113.2908]
[1673401007191,46.67,16.077,16.065,113.2908]
[1673401007384,46.67,16.079,16.066,20.0]
[1673401007805,26.33,16.08,16.066,20.0]
[1673401008437,46.67,16.079,16.066,20.0]
[1673401008648,17.0,16.078,16.066,20.0]
[1673401015806,17.0,16.078,16.065,113.2908]
[1673401017059,17.0,16.078,16.066,20.0]
[1673401018518,26.33,16.08,16.066,20.0]
[1673401019914,17.0,16.079,16.066,20.0]
[1673401026735,26.33,16.08,16.066,20.0]
[1673401027264,26.33,16.08,16.067,17.0]
[1673401027880,17.0,16.079,16.067,17.0]
[1673401028530,17.0,16.079,16.065,113.2908]
[1673401029999,20.0,16.078,16.065,113.2908]
[1673401030211,17.0,16.077,16.065,113.2908]
[1673401030415,17.0,16.079,16.065,113.2908]
[1673401031902,26.33,16.08,16.065,113.2908]
[1673401032094,26.33,16.08,16.066,37.0]
[1673401033461,17.0,16.079,16.066,37.0]
[1673401033672,26.42,16.08,16.066,37.0]
[1673401034610,26.42,16.08,16.066,36.0]
[1673401035372,17.0,16.079,16.066,36.0]
[1673401035571,17.0,16.079,16.066,17.0]
[1673401035792,20.0,16.078,16.066,17.0]
[1673401036198,17.0,16.079,16.066,37.0]
[1673401037348,17.0,16.079,16.065,113.2908]
[1673401037564,20.0,16.078,16.065,113.2908]
[1673401037772,17.0,16.077,16.065,113.2908]
[1673401038653,17.0,16.078,16.065,113.2908]
[1673401040732,17.0,16.079,16.066,20.0]
[1673401041048,20.0,16.078,16.065,113.2908]
[1673401041267,17.0,16.077,16.065,113.2908]
[1673401041449,17.0,16.079,16.065,113.2908]
[1673401041980,17.0,16.079,16.062,20.0]